bitfinex-derivatives/quotes_ETHF0:USTF0_20241102
["timestamp","ask_amount","ask_price","bid_price","bid_amount"]
[1730586126388,1.44401312,2493.8,2493.7,4.84151]
[1730586126584,1.44401312,2493.8,2493.7,0.83111]
[1730586127391,1.44401312,2493.8,2493.7,5.40044023]
[1730586127594,1.44401312,2493.8,2493.7,5.52583338]
[1730586127788,1.44401312,2493.8,2493.7,4.84151]
[1730586127987,1.44401312,2493.8,2493.7,5.40044359]
[1730586128291,1.44401312,2493.8,2493.7,5.52583688]
[1730586131687,1.44401312,2493.8,2493.7,4.96690307]
[1730586131887,1.44401312,2493.8,2493.7,6.08528576]
[1730586132089,1.44401312,2493.8,2493.7,5.5260936]
[1730586132293,1.44401312,2493.8,2493.7,1.5156936]
[1730586132596,1.44401312,2493.8,2493.7,1.51569879]
[1730586133490,1.44401312,2493.8,2493.7,1.51569999]
[1730586136096,1.44401312,2493.8,2493.7,1.51570183]
[1730586137199,1.44401312,2493.8,2493.7,1.51574915]
[1730586140998,1.44401312,2493.8,2493.7,1.51573233]
[1730586142195,5.45441312,2493.8,2493.5,3.2078]
[1730586142501,5.45441312,2493.8,2493.4,1.04790705]
[1730586142502,0.40115,2493.5,2493.4,0.40115]
[1730586142701,1.84516312,2493.5,2493.4,0.40115]
[1730586142996,1.44401312,2493.5,2493.4,0.40115]
[1730586145000,1.84515312,2493.5,2493.4,0.40115]
[1730586145306,1.44401312,2493.5,2493.4,0.40115]
[1730586147009,1.84515312,2493.5,2493.4,0.40115]
[1730586147302,0.40117,2493.3,2493.2,0.40117]
[1730586147597,1.84518312,2493.3,2493.2,0.40117]
[1730586148004,2.75798312,2493.3,2493.2,0.40117]
[1730586149600,4.20199624,2493.3,2492.9,1.00307]
[1730586149797,4.20199624,2493.3,2492.9,0.40123]
[1730586149798,1.44401312,2493.0,2492.9,0.40123]
[1730586150203,1.87441312,2493.0,2492.9,0.40123]
[1730586182536,1.87441312,2493.0,2492.9,0.46354991]
[1730586187755,1.87441312,2493.0,2492.9,1.14875491]
[1730586191254,1.87441312,2493.0,2492.9,1.14875505]
[1730586191854,1.87441312,2493.0,2492.9,0.46354991]
[1730586192056,1.87441312,2493.0,2492.9,1.14915349]
[1730586192654,1.44401312,2493.0,2492.9,1.14915349]
[1730586192849,0.9128,2493.3,2492.9,1.14915349]
[1730586192850,1.44401312,2493.1,2493.0,0.40122]
[1730586193052,1.44401312,2493.1,2493.0,1.08682358]
[1730586193352,1.44401312,2493.5,2493.2,0.40119]
[1730586193550,1.44401312,2493.5,2493.4,0.40115]
[1730586193755,1.44401312,2493.5,2493.4,1.98320846]
[1730586194157,1.44401312,2493.5,2493.4,1.08675358]
[1730586194353,1.44401312,2493.5,2493.4,1.98287502]
[1730586194861,1.44401312,2493.5,2493.4,2.04519909]
[1730586195161,1.44401312,2493.5,2493.4,1.14900057]
[1730586196357,1.84515312,2493.5,2493.4,1.14900057]
[1730586196556,1.84515312,2493.5,2493.4,0.46346991]
[1730586197666,1.44401312,2493.5,2493.4,0.46346991]
[1730586198564,1.84515312,2493.5,2493.4,0.46346991]
[1730586198869,1.44401312,2493.5,2493.4,0.46346991]
[1730586207166,1.44401312,2493.5,2493.4,0.06231991]
[1730586207167,5.85555312,2493.5,2493.4,0.06231991]
[1730586207362,7.29956624,2493.5,2493.4,0.06231991]
[1730586207558,5.85555312,2493.5,2493.4,0.06231991]
[1730586207764,5.45441312,2493.5,2493.4,0.46346991]
[1730586207963,1.44401312,2493.5,2493.4,0.46346991]
[1730586216970,1.84515312,2493.5,2493.4,0.46346991]
[1730586229687,1.84515312,2493.5,2493.4,0.46395003]
[1730586233890,1.84515312,2493.5,2493.4,0.06280003]
[1730586234989,1.84515312,2493.5,2493.4,0.46395003]
[1730586240701,1.44401312,2493.5,2493.4,0.46395003]
[1730586241101,1.44401312,2493.5,2493.4,1.14953274]
[1730586241295,1.44401312,2493.5,2493.4,1.03516979]
[1730586241499,1.44401312,2493.7,2493.4,5.20457199]
[1730586241793,1.44401312,2493.7,2493.6,0.40112]
[1730586241993,1.44401312,2493.7,2493.6,3.03538607]
[1730586242198,1.44401312,2493.7,2493.6,7.04578607]
[1730586242594,1.44401312,2493.7,2493.6,8.4855515]
[1730586242900,1.44401312,2493.7,2493.6,7.1085861]
[1730586243103,1.44401312,2493.7,2493.6,4.53796823]
[1730586243291,1.44401312,2493.7,2493.6,7.1085861]
[1730586243799,1.44401312,2493.7,2493.6,7.10856092]
[1730586245194,1.44401312,2493.7,2493.6,4.35726681]
[1730586246307,1.44401312,2493.7,2493.6,8.36766681]
[1730586247700,1.44401312,2493.7,2493.6,8.24136836]
[1730586247904,1.44401312,2493.7,2493.6,8.36676596]
[1730586248104,1.44401312,2493.7,2493.6,4.35636596]
[1730586248813,1.44401312,2493.9,2493.8,0.40109]
[1730586249508,1.44401312,2494.0,2493.9,0.40107]
[1730586249705,1.44401312,2494.3,2494.1,0.40104]
[1730586250005,1.44401312,2494.3,2494.2,0.85413]
[1730586250204,1.44401312,2494.3,2494.2,1.28513]
[1730586250801,1.44401312,2494.3,2494.2,1.34793003]
[1730586252304,1.44401312,2494.3,2494.2,0.91693003]
[1730586252703,1.86931312,2494.3,2494.2,0.91693003]
[1730586255801,1.86931312,2494.3,2494.2,0.06280003]
[1730586256105,6.27992312,2494.3,2494.2,0.06280003]
[1730586256610,7.14562312,2494.3,2494.2,0.06280003]
[1730586261218,3.13602312,2494.3,2494.2,0.06280003]
[1730586264111,6.34382312,2494.3,2494.2,0.06280003]
[1730586264508,3.13602312,2494.3,2494.2,0.06280003]
[1730586264710,6.34382312,2494.3,2494.2,0.06280003]
[1730586264915,3.13602312,2494.3,2494.2,0.06280003]
[1730586265524,6.34382312,2494.3,2494.2,0.06280003]
[1730586266215,10.35342312,2494.3,2494.2,0.06280003]
[1730586273117,6.34382312,2494.3,2494.2,0.06280003]
[1730586273317,10.35342312,2494.3,2494.2,0.06280003]
[1730586279616,7.14562312,2494.3,2494.2,0.06280003]
[1730586279827,10.35342312,2494.3,2494.2,0.06280003]
[1730586280119,11.79743624,2494.3,2494.2,0.06280003]
[1730586280323,11.39642624,2494.3,2493.4,1.87406]
[1730586280527,0.40112,2493.7,2493.6,0.40111]
[1730586282829,0.4011,2493.8,2493.7,0.40109]
[1730586283029,1.84511312,2493.8,2493.7,0.40109]
[1730586286425,1.44401312,2493.8,2493.7,0.40109]
[1730586286633,4.0842,2494.1,2493.8,0.40109]
[1730586286634,1.44401312,2493.9,2493.8,0.40109]
[1730586286824,1.44401312,2493.9,2493.8,1.74199]
[1730586293731,1.84508312,2493.9,2493.8,1.74199]
[1730586296839,1.44401312,2493.9,2493.8,1.74199]
[1730586297132,1.84508312,2493.9,2493.8,1.74199]
[1730586308344,1.84508312,2493.9,2493.8,1.29239]
[1730586310641,1.84508312,2493.9,2493.8,0.83009]
[1730586311144,1.84508312,2493.9,2493.8,0.40109]
[1730586311338,2.30598312,2493.9,2493.8,0.40109]
[1730586317346,2.30598312,2493.9,2493.8,1.08656349]
[1730586318253,2.30598312,2493.9,2493.8,1.08656908]
[1730586319542,2.30598312,2493.9,2493.8,0.9611669]
[1730586319748,2.30598312,2493.9,2493.8,0.40109]
[1730586320253,2.30598312,2493.9,2493.8,1.08657227]
[1730586320646,2.30598312,2493.9,2493.8,0.40109]
[1730586321154,2.30598312,2493.9,2493.8,0.96117779]
[1730586321356,2.30598312,2493.9,2493.8,0.40109]
[1730586323454,2.30598312,2493.9,2493.8,0.96119293]
[1730586323656,2.30598312,2493.9,2493.8,0.40109]
[1730586325450,2.30598312,2493.9,2493.8,1.08660303]
[1730586325651,2.30598312,2493.9,2493.8,0.40109]
[1730586327656,2.30598312,2493.9,2493.8,1.0866627]
[1730586333857,2.30598312,2493.9,2493.8,0.96125933]
[1730586334259,2.30598312,2493.9,2493.8,1.08666179]
[1730586337057,0.4609,2493.9,2493.8,1.08666179]
[1730586337256,0.9158,2494.0,2493.9,0.40107]
[1730586337464,1.44401312,2494.1,2494.0,0.40106]
[1730586337660,0.4269,2494.2,2494.1,0.40104]
[1730586337855,2.34661312,2494.3,2494.1,4.69548726]
[1730586338166,2.34661312,2494.3,2494.2,5.09651726]
[1730586338361,2.34661312,2494.3,2494.2,1.08661344]
[1730586338563,2.34661312,2494.3,2494.2,5.09621344]
[1730586339271,2.34661312,2494.3,2494.2,4.41063]
[1730586344170,2.34661312,2494.3,2494.2,0.40103]
[1730586344356,2.34661312,2494.3,2494.2,4.41063]
[1730586346873,0.9026,2494.3,2494.2,4.41063]
[1730586347262,2.34661312,2494.3,2494.2,4.41063]
[1730586350075,5.07871312,2494.5,2494.2,4.41063]
[1730586350273,3.2078,2494.5,2494.4,0.40099]
[1730586350469,0.8567,2494.6,2494.5,0.40098]
[1730586351078,0.8567,2494.6,2494.5,4.40978]
[1730586353673,0.8567,2494.6,2494.5,0.40098]
[1730586354067,0.8567,2494.6,2494.5,4.40978]
[1730586354473,0.8567,2494.6,2494.5,0.40098]
[1730586357576,2.70167312,2494.6,2494.5,0.40098]
[1730586359673,2.70167312,2494.6,2494.5,0.41477696]
[1730586364779,2.30071312,2494.6,2494.5,0.41477696]
[1730586364979,2.70167312,2494.6,2494.5,0.41477696]
[1730586365380,6.71047312,2494.6,2494.5,0.01379696]
[1730586366373,0.40098,2494.5,2494.4,0.40099]
[1730586366581,2.29449312,2494.5,2494.4,0.40099]
[1730586384390,1.89351312,2494.5,2494.4,0.40099]
[1730586385702,2.29449312,2494.5,2494.4,0.40099]
[1730586387003,0.40104,2494.2,2494.1,0.40102]
[1730586387201,1.84505312,2494.2,2494.1,0.40102]
[1730586387500,5.85465312,2494.2,2494.1,0.40102]
[1730586387904,6.28235312,2494.2,2494.1,0.40102]
[1730586388300,2.27275312,2494.2,2494.1,0.40102]
[1730586391007,1.87171312,2494.2,2494.1,0.40102]
[1730586392506,2.27274312,2494.2,2494.1,0.40102]
[1730586392709,1.87171312,2494.2,2494.1,0.40102]
[1730586394811,0.4277,2494.2,2494.1,0.40102]
[1730586395015,1.90211312,2494.3,2494.2,0.40103]
[1730586395214,4.9332,2494.5,2494.2,0.40103]
[1730586395215,2.35341312,2494.5,2494.2,0.40103]
[1730586395408,2.81381312,2494.5,2494.4,0.40099]
[1730586397327,3.21479312,2494.5,2494.4,0.40099]
[1730586401523,2.36431312,2494.5,2494.4,0.40099]
[1730586406224,2.76529312,2494.5,2494.4,0.40099]
[1730586406419,0.40102,2494.4,2494.3,0.401]
[1730586406612,1.84503312,2494.4,2494.3,0.401]
[1730586421527,1.44401312,2494.4,2494.3,0.401]
[1730586421730,1.44401312,2494.5,2494.4,0.40099]
[1730586421938,1.44401312,2494.5,2494.4,0.85969]
[1730586423838,1.84499312,2494.5,2494.4,0.85969]
[1730586425638,1.44401312,2494.5,2494.4,0.85969]
[1730586436047,0.9247,2494.7,2494.4,0.85969]
[1730586436251,3.2078,2494.9,2494.8,0.40093]
[1730586436444,2.73501312,2495.0,2494.9,0.40091]
[1730586438543,2.33411312,2495.0,2494.9,0.40091]
[1730586441739,0.8901,2495.0,2494.9,4.40891]
[1730586441949,3.2078,2495.2,2495.1,0.40088]
[1730586443851,3.2078,2495.2,2495.1,4.40888]
[1730586446252,2.75621312,2495.3,2495.2,0.40086]
[1730586446845,5.96401312,2495.3,2495.2,0.40086]
[1730586448250,2.75621312,2495.3,2495.2,0.40086]
[1730586448455,5.96401312,2495.3,2495.2,0.40086]
[1730586449848,2.75621312,2495.3,2495.2,0.40086]
[1730586450355,5.96401312,2495.3,2495.2,0.40086]
[1730586450853,2.75621312,2495.3,2495.2,0.40086]
[1730586451259,5.96401312,2495.3,2495.2,0.40086]
[1730586451855,2.75621312,2495.3,2495.2,0.40086]
[1730586452053,5.96401312,2495.3,2495.2,0.40086]
[1730586453160,2.75621312,2495.3,2495.2,0.40086]
[1730586453360,5.96401312,2495.3,2495.2,0.40086]
[1730586454558,2.75621312,2495.3,2495.2,0.40086]
[1730586455251,5.96401312,2495.3,2495.2,0.40086]
[1730586455961,2.75621312,2495.3,2495.2,0.40086]
[1730586456262,5.96401312,2495.3,2495.2,0.40086]
[1730586457460,2.75621312,2495.3,2495.2,0.40086]
[1730586458461,5.96401312,2495.3,2495.2,0.40086]
[1730586458864,2.75621312,2495.3,2495.2,0.40086]
[1730586459260,5.96401312,2495.3,2495.2,0.40086]
[1730586459857,4.52,2495.3,2495.2,0.40086]
[1730586460167,1.3122,2495.3,2495.2,0.40086]
[1730586461065,4.52,2495.3,2495.2,0.40086]
[1730586461656,1.3122,2495.3,2495.2,0.40086]
[1730586461856,4.52,2495.3,2495.2,0.40086]
[1730586462363,1.3122,2495.3,2495.2,0.40086]
[1730586462563,4.52,2495.3,2495.2,0.40086]
[1730586463470,1.3122,2495.3,2495.2,0.40086]
[1730586463960,4.52,2495.3,2495.2,0.40086]
[1730586464156,1.3122,2495.3,2495.2,0.40086]
[1730586464368,4.52,2495.3,2495.2,0.40086]
[1730586472259,1.3122,2495.3,2495.2,0.40086]
[1730586472757,4.52,2495.3,2495.2,0.40086]
[1730586473162,1.3122,2495.3,2495.2,0.40086]
[1730586473870,4.52,2495.3,2495.2,0.40086]
[1730586474373,1.3122,2495.3,2495.2,0.40086]
[1730586474759,4.52,2495.3,2495.2,0.40086]
[1730586475271,1.3122,2495.3,2495.2,0.40086]
[1730586475675,4.52,2495.3,2495.2,0.40086]
[1730586475877,3.2078,2495.7,2495.2,5.45201312]
[1730586476179,3.2078,2495.7,2495.6,0.4008]
[1730586476978,3.60858,2495.7,2495.6,0.4008]
[1730586477279,3.6295,2495.7,2495.6,0.4008]
[1730586478679,4.03028,2495.7,2495.6,0.4008]
[1730586478874,3.6295,2495.7,2495.6,0.4008]
[1730586482380,9.48149312,2495.7,2495.6,0.4008]
[1730586482685,9.48149312,2495.7,2495.5,0.4008]
[1730586482686,0.40082,2495.6,2495.5,0.4008]
[1730586482986,4.40802,2495.6,2495.5,0.4008]
[1730586486278,0.40082,2495.6,2495.5,0.4008]
[1730586493682,5.07351312,2495.7,2495.2,1.00217]
[1730586493888,1.84484312,2495.4,2495.3,0.40085]
[1730586494083,0.40081,2495.6,2495.3,1.0021]
[1730586494392,2.26650312,2495.7,2495.6,0.4008]
[1730586494791,6.27370312,2495.7,2495.6,0.4008]
[1730586500183,2.26650312,2495.7,2495.6,0.4008]
[1730586500384,6.27370312,2495.7,2495.6,0.4008]
[1730586500583,2.26650312,2495.7,2495.6,0.4008]
[1730586500985,6.27370312,2495.7,2495.6,0.4008]
[1730586501388,2.26650312,2495.7,2495.6,0.4008]
[1730586501594,6.27370312,2495.7,2495.6,0.4008]
[1730586502493,2.26650312,2495.7,2495.6,0.4008]
[1730586504195,6.27370312,2495.7,2495.6,0.4008]
[1730586504598,2.26650312,2495.7,2495.6,0.4008]
[1730586509094,6.27370312,2495.7,2495.6,0.4008]
[1730586509293,2.26650312,2495.7,2495.6,0.4008]
[1730586512494,0.40082,2495.6,2495.5,0.4008]
[1730586529716,0.40084,2495.5,2495.4,0.40083]
[1730586529914,0.40084,2495.5,2495.4,1.08645432]
[1730586530414,0.40085,2495.3,2495.2,0.40085]
[1730586530714,0.40085,2495.3,2495.2,0.68563414]
[1730586530715,1.84486312,2495.3,2495.2,0.68563414]
[1730586530917,1.84486312,2495.3,2495.2,0.68564153]
[1730586531309,1.44401312,2495.3,2495.1,0.40088]
[1730586531612,0.40086,2495.2,2495.1,0.40088]
[1730586531821,0.40086,2495.2,2495.1,1.08637247]
[1730586532015,0.40086,2495.2,2495.1,1.08637554]
[1730586535521,0.40086,2495.2,2495.1,0.52622019]
[1730586535717,0.40086,2495.2,2495.1,1.0861058]
[1730586536223,0.40086,2495.2,2495.1,0.52622019]
[1730586536429,0.40086,2495.2,2495.1,0.40088]
[1730586544434,1.66278164,2495.3,2494.8,0.4282]
[1730586544742,2.30251312,2495.1,2495.0,0.40089]
[1730586544934,1.90161312,2495.1,2494.8,0.4282]
[1730586545140,1.31571,2495.0,2494.9,0.4009]
[1730586545838,1.3157,2495.0,2494.9,0.4009]
[1730586546035,0.9148,2495.0,2494.9,0.4009]
[1730586546544,1.3157,2495.0,2494.9,0.4009]
[1730586550942,1.90161312,2495.1,2494.8,0.4282]
[1730586551143,3.2078,2495.2,2495.1,0.40088]
[1730586551948,3.2078,2495.2,2495.1,0.82708]
[1730586554051,2.27456312,2495.3,2495.1,0.4262]
[1730586554251,2.27456312,2495.3,2495.2,0.40086]
[1730586556348,1.84486312,2495.3,2495.2,0.40086]
[1730586564061,3.2078,2495.4,2495.2,4.008]
[1730586564267,1.87141312,2495.5,2495.4,0.40083]
[1730586564268,1.44401312,2495.5,2495.4,0.40083]
[1730586565062,1.84483312,2495.5,2495.4,0.81963]
[1730586565460,1.44401312,2495.5,2495.0,0.9031]
[1730586565758,1.84487312,2495.2,2495.1,0.81967]
[1730586565961,1.84487312,2495.2,2495.1,0.40087]
[1730586566556,2.30297312,2495.2,2495.1,0.40087]
[1730586584270,0.4581,2495.2,2495.1,0.40087]
[1730586584579,0.4338,2495.4,2495.3,0.40085]
[1730586588775,1.87781312,2495.4,2495.3,0.40085]
[1730586594579,2.27864312,2495.4,2495.3,0.40085]
[1730586615001,1.87781312,2495.4,2494.8,4.21012]
[1730586615199,1.84490312,2495.1,2495.0,0.40088]
[1730586620402,1.44401312,2495.1,2494.7,0.4397]
[1730586620613,1.44401312,2494.9,2494.8,0.40093]
[1730586621103,2.35611312,2494.9,2494.8,0.40093]
[1730586622297,1.44401312,2495.2,2495.0,1.00223]
[1730586622504,1.44401312,2495.2,2495.1,0.40088]
[1730586622705,1.84487312,2495.2,2495.1,0.86298]
[1730586622903,1.44401312,2495.2,2495.1,0.86298]
[1730586628123,1.84487312,2495.2,2495.1,0.40088]
[1730586628424,0.40089,2495.1,2495.0,0.40089]
[1730586628620,1.89211312,2495.1,2494.9,0.4009]
[1730586628831,1.2533,2495.0,2494.9,0.4009]
[1730586630819,0.40091,2494.9,2494.8,0.82002]
[1730586631218,0.40091,2494.9,2494.8,0.40092]
[1730586635322,1.84492312,2494.9,2494.8,0.40092]
[1730586635528,1.44401312,2494.9,2494.6,0.4265]
[1730586635820,0.84065,2494.8,2494.7,0.40094]
[1730586643120,0.4397,2494.8,2494.7,0.40094]
[1730586646125,0.84063,2494.8,2494.7,0.40094]
[1730586646733,0.4397,2494.8,2494.6,0.40095]
[1730586646934,1.84496312,2494.7,2494.6,0.40095]
[1730586650336,1.88371312,2494.8,2494.4,3.6416]
[1730586650533,1.44401312,2494.8,2494.7,0.40095]
[1730586651532,1.44401312,2494.8,2494.7,0.86465]
[1730586656439,1.84494312,2494.8,2494.7,0.86465]
[1730586657030,1.44401312,2494.8,2494.7,0.86465]
[1730586657643,1.84494312,2494.8,2494.7,0.86465]
[1730586658134,1.44401312,2494.8,2494.7,0.86465]
[1730586665646,1.84494312,2494.8,2494.7,0.86465]
[1730586665947,1.44401312,2494.8,2494.7,0.86465]
[1730586671450,1.89671312,2494.8,2494.7,0.86465]
[1730586674948,2.29764312,2494.8,2494.7,0.86465]
[1730586675349,1.89671312,2494.8,2494.7,0.86465]
[1730586678153,1.89671312,2494.8,2494.7,0.99000467]
[1730586678353,1.89671312,2494.8,2494.7,1.55005105]
[1730586678555,1.89671312,2494.8,2494.7,0.99000467]
[1730586679048,1.89671312,2494.8,2494.7,0.40095]
[1730586679248,2.29764312,2494.8,2494.7,0.40095]
[1730586683059,2.51755935,2494.8,2494.7,0.40095]
[1730586688460,2.11662935,2494.8,2494.4,4.21028]
[1730586688662,0.40096,2494.7,2494.6,0.40095]
[1730586688962,1.84497312,2494.7,2494.6,0.40095]
[1730586689861,1.84497312,2494.7,2494.4,3.2078]
[1730586689862,0.40099,2494.5,2494.4,0.40098]
[1730586690062,1.84500312,2494.5,2494.4,1.08643556]
[1730586690267,1.84500312,2494.5,2494.4,0.40098]
[1730586696265,1.84500312,2494.5,2494.2,0.4497]
[1730586696266,1.44401312,2494.5,2494.2,0.4497]
[1730586696570,0.83501,2494.4,2494.3,0.401]
[1730586702767,0.40101,2494.3,2494.1,3.60884]
[1730586703065,0.40105,2494.1,2494.0,0.40104]
[1730586703269,1.84506312,2494.1,2494.0,0.40104]
[1730586709402,1.44401312,2494.1,2493.7,3.6505]
[1730586709587,0.82148,2494.0,2493.9,0.40107]
[1730586710190,1.27348,2494.0,2493.9,0.40107]
[1730586711401,0.40109,2493.9,2493.8,0.40109]
[1730586713693,1.84510312,2493.9,2493.8,0.40109]
[1730586716098,1.44401312,2493.9,2493.7,3.6505]
[1730586716402,0.40109,2493.8,2493.7,4.0516]
[1730586716606,0.83159,2493.8,2493.7,4.0516]
[1730586716807,0.83159,2493.8,2493.7,3.6089]
[1730586718008,0.83159,2493.8,2493.7,0.4011]
[1730586722302,0.73159,2493.8,2493.7,0.4011]
[1730586724509,0.73159,2493.8,2493.7,0.41289368]
[1730586725118,2.17560312,2493.8,2493.7,0.41289368]
[1730586727013,1.84509312,2493.9,2493.8,0.40109]
[1730586727415,1.84509312,2493.9,2493.8,0.41288368]
[1730586729318,1.84509312,2493.9,2493.8,0.01179368]
[1730586729720,2.27549312,2493.9,2493.8,0.01179368]
[1730586737215,5.48329312,2493.9,2493.8,0.01179368]
[1730586740327,2.27549312,2493.9,2493.8,0.01179368]
[1730586740529,5.48329312,2493.9,2493.8,0.01179368]
[1730586743923,2.27549312,2493.9,2493.8,0.01179368]
[1730586744424,5.48329312,2493.9,2493.8,0.01179368]
[1730586744824,2.27549312,2493.9,2493.8,0.01179368]
[1730586745131,5.48329312,2493.9,2493.8,0.01179368]
[1730586745427,2.27549312,2493.9,2493.8,0.01179368]
[1730586745925,5.48329312,2493.9,2493.8,0.01179368]
[1730586746132,2.27549312,2493.9,2493.8,0.01179368]
[1730586746529,5.48329312,2493.9,2493.8,0.01179368]
[1730586747426,2.27549312,2493.9,2493.8,0.01179368]
[1730586748233,5.48329312,2493.9,2493.8,0.01179368]
[1730586751130,2.27549312,2493.9,2493.8,0.01179368]
[1730586753832,5.48329312,2493.9,2493.8,0.01179368]
[1730586754029,2.27549312,2493.9,2493.8,0.01179368]
[1730586754228,5.48329312,2493.9,2493.8,0.01179368]
[1730586756130,2.27549312,2493.9,2493.8,0.01179368]
[1730586756336,5.48329312,2493.9,2493.8,0.01179368]
[1730586756833,2.27549312,2493.9,2493.8,0.01179368]
[1730586757238,5.48329312,2493.9,2493.8,0.01179368]
[1730586758834,2.27549312,2493.9,2493.8,0.01179368]
[1730586759134,5.48329312,2493.9,2493.8,0.01179368]
[1730586760133,2.27549312,2493.9,2493.8,0.01179368]
[1730586760525,5.48329312,2493.9,2493.8,0.01179368]
[1730586760921,2.27549312,2493.9,2493.8,0.01179368]
[1730586761524,5.48329312,2493.9,2493.8,0.01179368]
[1730586764235,2.27549312,2493.9,2493.8,0.01179368]
[1730586764538,5.48329312,2493.9,2493.8,0.01179368]
[1730586764736,2.27549312,2493.9,2493.8,0.01179368]
[1730586765344,5.48329312,2493.9,2493.8,0.01179368]
[1730586766837,2.27549312,2493.9,2493.8,0.01179368]
[1730586767137,5.48329312,2493.9,2493.8,0.01179368]
[1730586767528,2.27549312,2493.9,2493.8,0.01179368]
[1730586767837,5.48329312,2493.9,2493.8,0.01179368]
[1730586771149,2.27549312,2493.9,2493.8,0.01179368]
[1730586771639,5.48329312,2493.9,2493.8,0.01179368]
[1730586773144,5.90339312,2493.9,2493.8,0.01179368]
[1730586773337,2.69559312,2493.9,2493.8,0.01179368]
[1730586773745,5.90339312,2493.9,2493.8,0.01179368]
[1730586775543,2.69559312,2493.9,2493.8,0.01179368]
[1730586776052,5.90339312,2493.9,2493.8,0.01179368]
[1730586776646,2.69559312,2493.9,2493.8,0.01179368]
[1730586776847,5.90339312,2493.9,2493.8,0.01179368]
[1730586777241,2.69559312,2493.9,2493.8,0.01179368]
[1730586777440,5.90339312,2493.9,2493.8,0.01179368]
[1730586778744,2.69559312,2493.9,2493.8,0.01179368]
[1730586779447,5.90339312,2493.9,2493.8,0.01179368]
[1730586782240,2.69559312,2493.9,2493.8,0.01179368]
[1730586782945,5.90339312,2493.9,2493.8,0.01179368]
[1730586783141,5.90339312,2493.9,2493.8,4.42248368]
[1730586783142,1.168,2493.9,2493.8,4.42248368]
[1730586783448,1.44401312,2494.6,2494.5,0.40098]
[1730586784550,1.44401312,2494.6,2494.5,0.41277368]
[1730586796360,1.84497312,2494.6,2494.5,0.41277368]
[1730586797461,1.44401312,2494.6,2494.5,0.41277368]
[1730586798168,1.84497312,2494.6,2494.5,0.41277368]
[1730586798664,1.44401312,2494.6,2494.5,0.41277368]
[1730586799565,1.84497312,2494.6,2494.5,0.41277368]
[1730586801265,1.44401312,2494.6,2494.5,0.41277368]
[1730586807775,1.84497312,2494.6,2494.5,0.41277368]
[1730586810069,1.44401312,2494.6,2494.5,0.41277368]
[1730586821673,1.84497312,2494.6,2494.5,0.41277368]
[1730586821879,0.40098,2494.5,2494.4,3.2078]
[1730586822071,0.40101,2494.4,2494.3,0.40101]
[1730586822272,2.30272312,2494.4,2494.3,0.40101]
[1730586834392,1.90171312,2494.4,2494.0,3.2078]
[1730586834691,0.8444,2494.3,2494.2,0.40102]
[1730586834885,1.24541,2494.3,2494.2,0.40102]
[1730586837195,0.8444,2494.3,2494.2,0.40102]
[1730586838401,1.24541,2494.3,2494.2,0.40102]
[1730586838995,0.8444,2494.3,2494.2,0.40102]
[1730586840699,1.24541,2494.3,2494.2,0.40102]
[1730586841498,0.8444,2494.3,2494.2,0.40102]
[1730586844402,1.90171312,2494.4,2494.3,0.40101]
[1730586844403,0.4577,2494.4,2494.3,0.40101]
[1730586844597,1.44401312,2494.5,2494.4,0.40099]
[1730586864523,1.84499312,2494.5,2494.4,0.40099]
[1730586864919,1.44401312,2494.5,2494.4,0.40099]
[1730586865421,1.84499312,2494.5,2494.4,0.40099]
[1730586865925,1.44401312,2494.5,2494.4,0.40099]
[1730586879833,1.84499312,2494.5,2494.4,0.40099]
[1730586880330,1.44401312,2494.5,2494.4,0.40099]
[1730586884833,0.40097,2494.6,2494.2,1.00255]
[1730586885033,0.4248,2494.4,2494.3,1.08644821]
[1730586886940,0.8592,2494.4,2494.3,1.08644821]
[1730586888139,0.8592,2494.4,2494.3,0.40101]
[1730586888442,0.8592,2494.4,2494.3,1.08662389]
[1730586891646,0.82385,2494.7,2494.6,0.40096]
[1730586891842,1.26685,2494.7,2494.6,0.40096]
[1730586892138,0.40098,2494.6,2494.5,0.40096]
[1730586892342,0.40098,2494.6,2494.5,1.08661449]
[1730586892757,0.86268,2494.6,2494.5,1.08661449]
[1730586899453,0.86268,2494.6,2494.5,0.96097369]
[1730586899943,0.86268,2494.6,2494.5,1.64635152]
[1730586902350,0.86268,2494.6,2494.5,0.96097369]
[1730586906655,0.86268,2494.6,2494.5,0.40096]
[1730586907150,0.4617,2494.6,2494.5,0.52632332]
[1730586907343,0.4617,2494.6,2494.5,1.08622969]
[1730586907749,0.4617,2494.6,2494.5,1.08623037]
[1730586910244,0.4617,2494.6,2494.5,0.52632332]
[1730586910450,0.4617,2494.6,2494.5,0.96079349]
[1730586910745,0.4617,2494.6,2494.5,1.08615419]
[1730586912949,0.86266,2494.6,2494.5,0.40096]
[1730586924564,0.4617,2494.6,2494.5,0.40096]
[1730586924868,0.86266,2494.6,2494.5,0.40096]
[1730586939972,0.4617,2494.6,2494.2,1.00256]
[1730586940173,1.44401312,2494.4,2494.3,0.40101]
[1730586941477,1.89131312,2494.4,2494.3,0.40101]
[1730586944277,1.84496312,2494.7,2494.6,0.40096]
[1730586949687,0.40095,2494.7,2494.6,0.40096]
[1730586950482,4.40975,2494.7,2494.6,0.40096]
[1730586952380,4.0088,2494.7,2494.3,0.84951]
[1730586952685,0.83106,2494.6,2494.5,0.40096]
[1730586954592,2.27507312,2494.6,2494.5,0.40096]
[1730586960481,2.50024209,2494.6,2494.5,0.40096]
[1730586966695,0.40101,2494.4,2494.3,0.401]
[1730586966885,1.84502312,2494.4,2494.3,0.401]
[1730586985016,0.40101,2494.4,2494.3,0.401]
[1730586991127,0.40104,2494.1,2494.0,3.2078]
[1730586991325,0.40105,2494.1,2494.0,0.40105]
[1730586991718,0.40106,2494.0,2493.9,0.40106]
[1730586991925,0.82486,2494.0,2493.9,0.40106]
[1730586992121,0.4238,2494.0,2493.9,0.40106]
[1730586993228,2.26887312,2494.0,2493.9,0.40106]
[1730586994022,1.86781312,2494.0,2493.9,0.40106]
[1730586998331,2.26887312,2494.0,2493.9,0.40106]
[1730587000125,2.49224032,2494.0,2493.9,0.40106]
[1730587005740,2.26887312,2494.0,2493.9,0.40106]
[1730587007443,1.86781312,2494.0,2493.9,0.40106]
[1730587009033,2.26887312,2494.0,2493.9,0.40106]
[1730587009541,1.86781312,2494.0,2493.9,0.40106]
[1730587011938,2.26887312,2494.0,2493.9,0.40106]